Cogmind - Beta 16 @@@ ROGUE MODE // 2026.01.24 @ 20:40:55 Player: FrigidRock Result: Destroyed by G-50 Soldier with Heavy Laser Performance ------------- Evolutions (4) 2000 Regions Visited (10) 2000 Robots Destroyed (155) 775 Value Destroyed (5282) 5282 Prototype IDs (10) 200 Alien Tech Used (0) 0 Bonus (2300) 2300 TOTAL SCORE: 12557 Bonus ------- High Alert Combat Kills 318 Follower Combat Kills 82 Entered Garrisons 400 Used RIF Installer 1500 Cogmind --------- Core Integrity 0/850 Matter 231/300 Energy 99/100 System Corruption 5% Temperature Cool (18) Movement Core (50) Location -6/Factory Parts ------- > --- POWER (1) -------- (None) > --- PROPULSION (4) --- (None) > --- UTILITY (7) ------ (None) > --- WEAPON (3) ------- (None) > --- INVENTORY (5) ---- Reinforced Deuterium Engine Flexi-carbon Leg High-capacity Storage Unit Relay Coupler [Sentry] (26) Remote Datajack Peak State ------------ > --- POWER ------------ Reinforced Quantum Reactor > --- PROPULSION ------- Carbon-fiber Leg Carbon-fiber Leg Flexi-carbon Leg Flexi-carbon Leg > --- UTILITY ---------- Advanced Heat Sink Advanced Heat Sink Improved Cooling System Large Storage Unit Improved Core Shielding Improved Core Shielding Layered Medium Armor Plating > --- WEAPON ----------- Improved Lightning Gun Heavy Plasma Cannon Autogun > --- INVENTORY -------- Reinforced Deuterium Engine Carbon-fiber Leg Carbon-fiber Leg Carbon-fiber Leg High-capacity Storage Unit Structural Scanner Relay Coupler [NC] Relay Coupler [Sentry] Relay Coupler [Hunter] Sensor Drone Bay Magnetic Acceleration Cannon Remote Datajack Plasma Cutter CPS Tube CPS Tube [Rating: 73] Favorites ----------- Power Improved Ion Engine Engine Improved Ion Engine Power Core Fission Core Reactor Reinforced Quantum Reactor Propulsion Light Treads Treads Light Treads Leg Carbon-fiber Leg Wheel Wheel Flight Unit VTOL Module Utility Large Storage Unit Device Advanced Heat Sink Storage Large Storage Unit Processor Improved Melee Analysis Suite Hackware Relay Coupler [Brawler] Protection Light Armor Plating Weapon Autogun Energy Gun Pulse Rifle Energy Cannon Light EM Pulse Cannon Ballistic Gun Autogun Ballistic Cannon Heavy Flak Cannon Launcher Proton Missile Launcher Special Weapon Remote Datajack Impact Weapon Hammer Slashing Weapon Greatsword Build | -11 -10 -10 -9 -9 -9 -9 -9 -6 -6 -6 ------- Run | Yrd Mat Min Mat Sto Gar Rec Scr Fac Gar Fac Slots Evolved 8 | . . . 2 . . . . 6 . . Power . | . . . . . . . . . . . Propulsion 2 | . . . 1 . . . . 1 . . Utility 5 | . . . . . . . . 5 . . Weapon 1 | . . . 1 . . . . . . . Parts Attached 111 | 6 13 2 17 4 4 5 3 17 30 10 Power 9 | 1 2 . 1 1 . . 1 2 1 . Engine 7 | 1 2 . 1 1 . . 1 1 . . Core 1 | . . . . . . . . 1 . . Reactor 1 | . . . . . . . . . 1 . Propulsion 33 | 2 2 . 7 . 1 2 1 5 12 1 Treads 13 | 2 . . 5 . 1 2 1 . 2 . Leg 15 | . 2 . 2 . . . . 1 9 1 Wheel 4 | . . . . . . . . 4 . . Hover . | . . . . . . . . . . . Flight 1 | . . . . . . . . . 1 . Utility 31 | 1 2 1 3 . 1 2 . 6 13 2 Device 11 | . . 1 . . 1 1 . 2 6 . Storage 3 | 1 1 . 1 . . . . . . . Processor 2 | . . . . . . . . 1 1 . Hackware 2 | . . . . . . . . . 1 1 Protection 13 | . 1 . 2 . . 1 . 3 5 1 Artifact . | . . . . . . . . . . . Weapon 38 | 2 7 1 6 3 2 1 1 4 4 7 Energy Gun 9 | . 3 . 2 . 1 1 . 2 . . Energy Cannon 7 | . . 1 . 3 1 . . . 2 . Ballistic Gun 8 | 2 2 . 3 . . . . . 1 . Ballistic Cannon 6 | . . . . . . . . 2 . 4 Launcher 3 | . 1 . 1 . . . 1 . . . Special Weapon 1 | . . . . . . . . . . 1 Impact Weapon 1 | . 1 . . . . . . . . . Slashing Weapon 3 | . . . . . . . . . 1 2 Piercing Weapon . | . . . . . . . . . . . Special Melee Weapon . | . . . . . . . . . . . Unidentified Prototypes 3 | . . 1 . 1 . . . 1 . . Parts Lost 40 | . 4 . 2 . 1 . . 6 24 3 Power 3 | . 1 . . . . . . 1 1 . Propulsion 16 | . 1 . 2 . . . . 2 9 2 Utility 11 | . . . . . . . . 1 9 1 Weapon 10 | . 2 . . . 1 . . 2 5 . Highest Loss Streak 9 | . 3 . 1 . 1 . . 2 9 1 To Critical Strikes 1 | . . . . . . . . . 1 . Average Backups 12 | 1 8 9 9 14 14 14 14 13 13 13 Power . | . 1 1 1 1 1 1 . . 1 1 Propulsion . | . 1 . . 1 . . 1 . . . Utility 4 | . 1 3 2 3 5 4 4 4 5 7 Weapon 4 | . 3 4 4 6 6 7 6 5 2 . Tool/Special . | . . . . . . . . . . . Unused Backups 21 | . 4 . 3 . . 1 . 1 2 10 Power 1 | . . . . . . . . . . 1 Propulsion 2 | . . . 1 . . . . . 1 . Utility 10 | . . . 2 . . . . 1 1 6 Weapon 5 | . 4 . . . . 1 . . . . Tool/Special 3 | . . . . . . . . . . 3 Average Slot Usage (%) 91 | . 98 96 98 100 96 97 87 81 76 95 Engine 9 | . 14 14 11 11 11 11 11 4 1 . Treads 22 | . 25 . 18 33 33 33 33 15 2 . Leg 5 | . 2 28 13 . . . . 4 11 25 Device 4 | . . 4 4 . . . . 8 11 20 Storage 10 | . 14 14 11 11 11 11 11 6 6 6 Protection 10 | . 13 9 6 11 10 10 11 12 9 18 Energy Gun 6 | . 3 . 6 12 7 9 8 6 3 1 Energy Cannon 4 | . . 10 5 14 9 10 . 2 3 1 Ballistic Gun 9 | . 21 14 17 4 10 10 6 5 1 1 Ballistic Cannon 1 | . . . . . . . . 3 5 8 Launcher 2 | . . . 3 1 3 . 5 . 1 . Peak Build Rating 73 | 6 10 17 21 20 19 18 22 57 73 73 Average Rating 25 | 4 8 11 17 18 17 17 16 39 54 70 On Entrance 21 | . 6 8 17 18 18 15 10 22 52 73 Avg Prop Armor Cover (%) 3 | . . . . . 7 . . 2 4 . Naked Turns . | . . . . . . . . . . . Heaviest Build 97 | 12 22 36 41 43 43 42 43 74 96 97 Greatest Support 88 | 40 40 20 60 60 60 60 68 88 70 70 Greatest Overweight (x) 11 | . 1 1 1 . . . . 3 11 1 Average Overweight (x) . | . . . . . . . . . 1 . Largest Inventory Capacity 15 | 8 10 10 15 15 15 15 15 15 15 15 Average Capacity 13 | 7 9 10 11 15 15 15 15 15 15 15 Most Carried 15 | 4 10 10 13 15 15 15 15 15 15 15 Average Carried 12 | 1 8 9 9 14 14 14 14 13 14 13 Final Capacity 15 | 8 10 10 15 15 15 15 15 15 15 5 Final Carried 15 | 4 10 9 12 15 15 15 14 14 15 5 Class Distribution -------------------- 31% | Scavenger-Tank 16% | Mutant 15% | Scientist-Tank 10% | Scavenger-Mutant 5% | Gunner 5% | Bothacker-Tank 4% | Bothacker-Mutant 3% | Commander-Tank 3% | Tank Dominant Class ---------------- Mutant | -10/Materials Mutant | -10/Mines Gunner | -9/Materials Scientist-Tank | -9/Storage Scientist-Tank | -9/Garrison Scientist-Tank | -9/Recycling Scavenger-Tank | -9/Scraptown Scavenger-Tank | -6/Factory Scavenger-Tank | -6/Garrison Bothacker-Tank | -6/Factory Resources | -11 -10 -10 -9 -9 -9 -9 -9 -6 -6 -6 ----------- Run | Yrd Mat Min Mat Sto Gar Rec Scr Fac Gar Fac Matter Collected 3423 | 146 438 . 628 153 184 225 141 552 787 169 Remotely . | . . . . . . . . . . . Salvage Created 5368 | . 458 . 1058 199 559 606 . 846 1489 153 Parts 289 | . 28 . 76 14 58 21 . 38 48 6 Haulers Intercepted 1 | . 1 . . . . . . . . . Recyclers Shooed 2 | . . . . . . . . 2 . . Parts Field Recycled . | . . . . . . . . . . . Retrieved Matter . | . . . . . . . . . . . Parts Self-Destructed . | . . . . . . . . . . . Prevented . | . . . . . . . . . . . Parts Restored . | . . . . . . . . . . . Kills | -11 -10 -10 -9 -9 -9 -9 -9 -6 -6 -6 ------- Run | Yrd Mat Min Mat Sto Gar Rec Scr Fac Gar Fac Combat Hostiles Destroyed 132 | . 14 . 32 7 27 4 . 13 30 5 Melee 7 | . 2 . . . . . . . 1 4 Guns 33 | . 8 . 9 . 3 2 . 7 4 . Cannons 36 | . . . 10 3 4 2 . 2 14 1 AOE 53 | . 3 . 13 4 20 . . 4 9 . Classes Destroyed 16 | . 5 . 4 . 1 2 . 1 3 . Worker 7 | . 2 . . . . . . 5 . . Builder 2 | . . . 2 . . . . . . . Hauler 2 | . 1 . . . . . . 1 . . Recycler 6 | . . . . . . 5 . 1 . . Operator 1 | . . . 1 . . . . . . . Watcher 4 | . 2 . 2 . . . . . . . Swarmer 45 | . 6 . 11 3 15 . . . 7 3 Grunt 51 | . 8 . 11 2 6 1 . 9 14 . Brawler 1 | . . . . . . . . 1 . . Duelist 3 | . . . 1 . . . . 2 . . Protector 1 | . . . . . . 1 . . . . Sentry 22 | . . . 9 2 5 3 . . 2 1 Hunter 2 | . . . . . . . . . 2 . Programmer 5 | . . . . . 1 . . 1 2 1 Heavy 2 | . . . . . . . . . 2 . Behemoth 1 | . . . . . . . . . 1 . Best Kill Streak 12 | . 3 . 10 4 12 4 . 5 7 3 Combat Bots Only 12 | . 3 . 9 4 12 2 . 5 7 3 Max Kills in Single Turn 4 | . 3 . 4 2 4 3 . 2 3 2 Gunslinging . | . . . . . . . . . . . Exploded 4 | . 2 . 3 2 4 . . 1 3 . Melee 2 | . 1 . . . . . . . 1 2 Uniques/NPCs Destroyed . | . . . . . . . . . . . Combat | -11 -10 -10 -9 -9 -9 -9 -9 -6 -6 -6 -------- Run | Yrd Mat Min Mat Sto Gar Rec Scr Fac Gar Fac Hostile Shots Fired 728 | . 111 . 82 20 35 12 . 76 289 103 Missed 204 | . 25 . 25 6 12 7 . 28 70 31 Hits 524 | . 86 . 57 14 23 5 . 48 219 72 Melee 8 | . . . . . . . . 7 . 1 Projectile 516 | . 86 . 57 14 23 5 . 41 219 71 Critical Strikes 18 | . 1 . 1 . 1 . . 4 8 3 Damage Taken 8988 | . 965 . 729 146 320 92 . 1051 4582 1103 Core 1193 | . 192 . 54 10 57 13 . 36 731 100 Absorbed by Shields . | . . . . . . . . . . . Redirected to Shielding 159 | . 29 . . . . . . . 25 105 Core Remaining (%) 63 | 100 . 23 . . . . 66 . . . Volleys Fired 298 | . 48 . 51 9 27 9 . 47 99 8 Largest 3 | . 2 . 3 3 3 3 . 3 3 3 Hottest 194 | . 90 . 149 187 147 142 . 148 194 173 Shots Fired 614 | . 88 . 114 17 52 29 . 114 182 18 Gun 345 | . 86 . 71 6 21 19 . 87 53 2 Cannon 217 | . . . 27 7 19 10 . 21 118 15 Launcher 51 | . 2 . 16 4 12 . . 6 11 . Special 1 | . . . . . . . . . . 1 Kinetic 269 | . 55 . 67 1 12 9 . 55 55 15 Thermal 150 | . 5 . 4 6 11 10 . 20 93 1 Explosive 50 | . 2 . 16 4 12 . . 5 11 . Electromagnetic 144 | . 26 . 27 6 17 10 . 34 23 1 Robot Hit Streak 22 | . 9 . 18 22 14 12 . 11 11 6 Robot Miss Streak 7 | . 4 . 3 2 1 2 . 3 7 4 Penetration Max . | . . . . . . . . . . . Secondary Targets 3 | . 1 . . . . . . 2 . . Max Gunslinging Chain 1 | . 1 . . . . . . 1 . . Shots Hit Robots 410 | . 62 . 62 8 27 19 . 81 138 13 Core Hits 269 | . 23 . 57 11 31 11 . 45 85 6 Critical Kills 2 | . . . 1 . . . . . 1 . Critical Parts Destroyed 1 | . 1 . . . . . . . . . Critical Strikes 17 | . 2 . 1 1 . . . . 11 2 Burn 1 | . . . . . . . . . 1 . Meltdown 1 | . . . . . . . . . 1 . Destroy 1 | . . . 1 . . . . . . . Corrupt 3 | . 1 . . 1 . . . . 1 . Smash 1 | . 1 . . . . . . . . . Sever 10 | . . . . . . . . . 8 2 Melee Attacks 59 | . 14 . . . . . . . 23 22 Impact 14 | . 14 . . . . . . . . . Slashing 45 | . . . . . . . . . 23 22 Piercing . | . . . . . . . . . . . Sneak Attacks . | . . . . . . . . . . . Combat Hostiles . | . . . . . . . . . . . Follow-up Attacks 7 | . . . . . . . . . . 7 Damage Inflicted 13758 | . 1341 . 2349 474 1473 476 . 2397 4803 445 Guns 3515 | . 724 . 662 51 144 236 . 1037 661 . Cannons 3910 | . . . 476 81 203 160 . 373 2489 128 Explosions 5298 | . 260 . 1207 342 1126 79 . 987 1297 . Melee 1024 | . 351 . . . . . . . 356 317 Ramming 11 | . 6 . 4 . . 1 . . . . Kinetic 3004 | . 414 . 607 . 89 116 . 723 927 128 Thermal 3204 | . 122 . 55 74 103 199 . 763 1888 . Explosive 4528 | . 189 . 1207 342 1126 . . 367 1297 . Electromagnetic 1987 | . 259 . 476 58 155 160 . 544 335 . Impact 351 | . 351 . . . . . . . . . Slashing 673 | . . . . . . . . . 356 317 Piercing . | . . . . . . . . . . . Highest Corruption 5 | . 2 2 . 2 2 2 2 2 2 5 Average Corruption 2 | . 1 2 . 2 2 2 2 1 2 3 Corruption Purged . | . . . . . . . . . . . Corruption Blocked . | . . . . . . . . . . . Effects 90 | . 10 3 . 3 7 24 12 4 16 11 Message Errors 17 | . 2 1 . . 1 5 2 . 2 4 Matter Fused 25 | . 2 . . 2 1 11 3 . 3 3 Heat Flow Errors 9 | . 1 . . 1 . 1 2 . 4 . Energy Discharges 12 | . 1 . . . 2 1 2 4 . 2 Parts Rejected 1 | . . . . . . . . . . 1 Parts Fused 3 | . . . . . . 1 1 . 1 . Data Loss (minor) 12 | . 3 1 . . 1 2 1 . 3 1 Data Loss (major) 4 | . . . . . 1 1 1 . 1 . Misfires 5 | . . . . . 1 2 . . 2 . Alerts 1 | . . 1 . . . . . . . . Weapon Failures 1 | . 1 . . . . . . . . . Overload Shots . | . . . . . . . . . . . Overflow Damage 319 | . 62 . 84 . 55 13 . 25 69 11 Projectiles 48 | . . . 10 . . 13 . . 25 . Explosions 198 | . . . 74 . 55 . . 25 44 . Melee 73 | . 62 . . . . . . . . 11 Knockbacks 21 | . 2 . . . . . . 5 14 . Impact 2 | . 2 . . . . . . . . . Kinetic 19 | . . . . . . . . 5 14 . Secondary . | . . . . . . . . . . . Self-Inflicted Damage 391 | . 38 . 52 8 32 18 . 66 177 . Shots 14 | . 1 . 2 1 2 1 . 2 5 . Rammed 1 | . 1 . . . . . . . . . Targets Rammed 4 | . 2 . 1 . . 1 . . . . Kicked 2 | . 1 . 1 . . . . . . . Crushed 1 | . . . . . . 1 . . . . Highest Temperature 487 | . 339 . 290 166 411 203 232 415 487 . Average Temperature 120 | . 167 . 76 72 116 93 110 136 136 . Received Heat Transfer 1959 | . 468 . 168 33 84 18 . 282 597 309 Effects 17 | . 4 . 3 . 5 . 1 1 3 . Shutdowns 1 | . . . . . . . . . 1 . Energy Bleed 5 | . . . 1 . 1 . 1 1 1 . Interference 9 | . 4 . 2 . 3 . . . . . Short Circuit 1 | . . . . . 1 . . . . . Damage (minor) 1 | . . . . . . . . . 1 . Siege Activations . | . . . . . . . . . . . Martial Activations . | . . . . . . . . . . . Shielding Activations . | . . . . . . . . . . . Robots Disrupted . | . . . . . . . . . . . Combat Hostiles . | . . . . . . . . . . . Robots Corrupted 2 | . 1 . . . . . . . 1 . Combat Hostiles 2 | . 1 . . . . . . . 1 . Parts Fried 7 | . 1 . 2 . 1 1 . 1 1 . Impact Corruptions 3 | . 3 . . . . . . . . . Robots Melted 1 | . . . . . . . . . 1 . Combat Hostiles 1 | . . . . . . . . . 1 . Parts Melted 7 | . . . . . . 1 . 1 5 . Heat Transferred 5149 | . 298 . 111 148 185 440 . 881 3086 . Parts Sabotaged . | . . . . . . . . . . . Parts Stolen . | . . . . . . . . . . . Parts Stripped . | . . . . . . . . . . . Power Chain Reactions 4 | . 1 . . . . 1 . 2 . . Alert | -11 -10 -10 -9 -9 -9 -9 -9 -6 -6 -6 ------- Run | Yrd Mat Min Mat Sto Gar Rec Scr Fac Gar Fac Maximum Alert Level 3 | . . . 2 . 3 1 . . 3 2 Low Security (%) 61 | 100 100 100 51 100 27 63 . 100 30 . Level 1 19 | . . . 34 . 1 36 . . 19 59 Level 2 14 | . . . 14 . 27 . . . 43 40 Level 3 4 | . . . . . 43 . . . 6 . Level 4 . | . . . . . . . . . . . Level 5 . | . . . . . . . . . . . High Security . | . . . . . . . . . . . Max Security . | . . . . . . . . . . . Peak Influence 823 | . 148 51 551 187 753 348 . 149 823 433 Initial 431 | . . 51 . 71 97 338 . . 11 431 Average 209 | . 36 14 231 112 511 159 . 54 354 388 Influence Increases 4495 | . 535 . 1008 239 686 287 . 438 1072 230 Destroy 0b10 Robot/C 2660 | . 280 . 640 140 540 80 . 260 620 100 Destroy 0b10 Robot/NC 130 | . 25 . 25 . . 30 . 30 15 5 Destroy Leader 432 | . 76 . 154 40 30 . . 50 50 32 Allied During Kill 18 | . . . . . . 16 . . 2 . Successful Hack 101 | . 37 . 31 17 7 9 . . . . Select Force Hacks 210 | . 60 . . . . 150 . . . . Disable Machine 210 | . 15 . 75 15 . . . 45 30 30 Anti-Garrison Action 200 | . . . . . . . . . 200 . Destroy Structure 309 | . 12 . 83 27 64 2 . 53 65 3 Lose Combat Pursuer 225 | . 30 . . . 45 . . . 90 60 Influence Decreases 4138 | . 403 132 838 259 83 1025 15 422 265 696 Entered New Map 1060 | . . 81 . 99 53 415 15 . 5 392 Time Decay 2238 | . 363 51 518 160 . 530 . 362 . 254 Lost Part 390 | . 40 . 20 . 10 . . 50 240 30 Lost Ally 150 | . . . . . 20 80 . 10 20 20 Purge Threat 300 | . . . 300 . . . . . . . Squads Dispatched 17 | . 5 . 1 3 . . . 5 . 3 Investigation 4 | . 3 . 1 . . . . . . . Extermination 1 | . . . . . . . . 1 . . Reinforcement 8 | . 2 . . 2 . . . 1 . 3 Assault . | . . . . . . . . . . . Garrison 4 | . . . . 1 . . . 3 . . Intercept . | . . . . . . . . . . . Searches Triggered . | . . . . . . . . . . . Construction Impeded . | . . . . . . . . . . . Haulers Reinforced . | . . . . . . . . . . . Active Scanning Responses . | . . . . . . . . . . . Cargo Convoy Interrupts . | . . . . . . . . . . . Stealth | -11 -10 -10 -9 -9 -9 -9 -9 -6 -6 -6 --------- Run | Yrd Mat Min Mat Sto Gar Rec Scr Fac Gar Fac Distress Signals 8 | . 1 . 6 . . . . . . 1 Communications Jammed . | . . . . . . . . . . . Distress Signals . | . . . . . . . . . . . Times Spotted 174 | . 26 . 38 10 25 5 . 17 35 18 Peak Tracking Total 9 | . 3 . 9 4 8 2 . 4 8 8 Tactical Retreats 8 | . 2 . . . 1 . . . 3 2 Traps | -11 -10 -10 -9 -9 -9 -9 -9 -6 -6 -6 ------- Run | Yrd Mat Min Mat Sto Gar Rec Scr Fac Gar Fac Traps Triggered 8 | . 4 . 1 1 1 . . . 1 . Indirectly . | . . . . . . . . . . . Trap Hack Attempts . | . . . . . . . . . . . Triggered . | . . . . . . . . . . . Disarmed . | . . . . . . . . . . . Reprogrammed . | . . . . . . . . . . . Reused . | . . . . . . . . . . . Traps Extracted . | . . . . . . . . . . . Installed . | . . . . . . . . . . . Triggered . | . . . . . . . . . . . Machines | -11 -10 -10 -9 -9 -9 -9 -9 -6 -6 -6 ---------- Run | Yrd Mat Min Mat Sto Gar Rec Scr Fac Gar Fac Machines Disabled 17 | . 1 . 5 1 . . . 3 5 2 Max in Single Turn 2 | . 1 . 1 1 . . . 2 1 1 Garrison Relay 2 | . . . . . . . . . 2 . Machines Repaired . | . . . . . . . . . . . Machines Dismantled . | . . . . . . . . . . . Machines Sabotaged . | . . . . . . . . . . . Overloaded Fab Kills . | . . . . . . . . . . . Hacking | -11 -10 -10 -9 -9 -9 -9 -9 -6 -6 -6 --------- Run | Yrd Mat Min Mat Sto Gar Rec Scr Fac Gar Fac Machines Accessed 42 | . 8 1 11 3 3 11 2 2 1 . Terminals 28 | . 6 . 9 2 3 6 . 1 1 . Fabricators . | . . . . . . . . . . . Repair Stations . | . . . . . . . . . . . Recycling Units 7 | . 2 . . . . 5 . . . . Scanalyzers 2 | . . . 2 . . . . . . . Garrison Access 2 | . . . . 1 . . . 1 . . Total Hacks 103 | . 20 1 44 5 5 20 5 2 1 . Successful 60 | . 11 1 26 3 1 11 5 1 1 . Failed 42 | . 9 . 17 2 4 9 . 1 . . Catastrophic 8 | . 1 . 4 1 1 . . 1 . . Database Lockouts 1 | . . . 1 . . . . . . . Manual 70 | . 20 . 21 5 . 23 . 1 . . Terminals 79 | . 18 . 35 4 5 15 . 1 1 . Fabricators . | . . . . . . . . . . . Repair Stations . | . . . . . . . . . . . Recycling Units 7 | . 2 . . . . 5 . . . . Scanalyzers 9 | . . . 9 . . . . . . . Garrison Access 2 | . . . . 1 . . . 1 . . Terminal Hacks 21 | . 1 1 11 . 1 1 5 . 1 . Record 5 | . . . . . . . 5 . . . Part Schematic 2 | . 1 . . . . 1 . . . . Robot Analysis 3 | . . . 3 . . . . . . . Prototype ID Bank 4 | . . . 4 . . . . . . . Open Door 3 | . . 1 . . 1 . . . 1 . Branch Access Points 1 | . . . 1 . . . . . . . Unreport Threat 2 | . . . 2 . . . . . . . Locate Traps 1 | . . . 1 . . . . . . . Fabricator Hacks . | . . . . . . . . . . . Repair Station Hacks . | . . . . . . . . . . . Recycling Unit Hacks . | . . . . . . . . . . . Scanalyzer 7 | . . . 7 . . . . . . . Retrieve Study 7 | . . . 7 . . . . . . . Garrison Access Hacks 2 | . . . . 1 . . . 1 . . Unlock Access 2 | . . . . 1 . . . 1 . . Unauthorized Hacks 30 | . 10 . 8 2 . 10 . . . . Terminals 23 | . 8 . 8 2 . 5 . . . . Botnet 9 | . 3 . 3 1 . 2 . . . . Skim 14 | . 5 . 5 1 . 3 . . . . Fabricators . | . . . . . . . . . . . Repair Stations . | . . . . . . . . . . . Recycling Units 7 | . 2 . . . . 5 . . . . Tunnel 7 | . 2 . . . . 5 . . . . Scanalyzers . | . . . . . . . . . . . Garrison Access . | . . . . . . . . . . . Data Cores Recovered . | . . . . . . . . . . . Used . | . . . . . . . . . . . Hacking Detections 26 | . 5 . 10 2 3 4 . 1 1 . Full Trace Events . | . . . . . . . . . . . Feedback Events . | . . . . . . . . . . . Feedback Blocked . | . . . . . . . . . . . Robot Schematics Acquired . | . . . . . . . . . . . Robots Built . | . . . . . . . . . . . Authchips . | . . . . . . . . . . . Time . | . . . . . . . . . . . Total Robot Build Rating . | . . . . . . . . . . . Part Schematics Acquired 2 | . 1 . . . . 1 . . . . Parts Built . | . . . . . . . . . . . Authchips . | . . . . . . . . . . . Time . | . . . . . . . . . . . Total Part Build Rating . | . . . . . . . . . . . Part Studies Acquired 7 | . . . 7 . . . . . . . Parts Repaired . | . . . . . . . . . . . Time . | . . . . . . . . . . . Parts Recycled . | . . . . . . . . . . . Recycled Matter . | . . . . . . . . . . . Retrieved Matter . | . . . . . . . . . . . Retrieved Components . | . . . . . . . . . . . Parts Scanalyzed . | . . . . . . . . . . . Part Schematics Acquired . | . . . . . . . . . . . Parts Damaged . | . . . . . . . . . . . Bothacking | -11 -10 -10 -9 -9 -9 -9 -9 -6 -6 -6 ------------ Run | Yrd Mat Min Mat Sto Gar Rec Scr Fac Gar Fac Used RIF Installer 3 | . . . . . 2 . . . 1 . Command Fork 1 | . . . . . . . . . 1 . Zone Cloak 1 | . . . . . 1 . . . . . Robots Hacked . | . . . . . . . . . . . Non-combat . | . . . . . . . . . . . Combat . | . . . . . . . . . . . Robot Hacks Applied . | . . . . . . . . . . . Relay Couplers Released 11 | . . . . . 3 . . . 8 . Machine Destruction 8 | . . . . . . . . . 8 . Programmers 3 | . . . . . 3 . . . . . Attached 2 | . . . . . . . . . 1 1 Fabnet Peak Effective % . | . . . . . . . . . . . Robots Rewired 10 | . . . . . . 10 . . . . Allies Hacked . | . . . . . . . . . . . Hacks Repelled . | . . . . . . . . . . . Allies | -11 -10 -10 -9 -9 -9 -9 -9 -6 -6 -6 -------- Run | Yrd Mat Min Mat Sto Gar Rec Scr Fac Gar Fac Total Allies 13 | . . . . . 1 10 . . 2 . Largest Group 9 | . . . . . 1 9 4 4 2 1 Highest-Rated Group 102 | . . . . . 31 102 53 53 92 46 Highest-Rated Ally 46 | . . . . . 31 18 18 18 46 46 Total Orders 5 | . . 1 4 . . . . . . . RETURN 5 | . . 1 4 . . . . . . . Ally Attacks 17 | . . . . . 2 9 . 1 4 1 Total Damage 290 | . . . . . . 86 . 31 150 23 Kills 3 | . . . . . . 1 . . 1 1 Allies Corrupted . | . . . . . . . . . . . Allies Melted . | . . . . . . . . . . . Intel | -11 -10 -10 -9 -9 -9 -9 -9 -6 -6 -6 ------- Run | Yrd Mat Min Mat Sto Gar Rec Scr Fac Gar Fac Active Infowar (turns) 814 | . . . . . . 70 . 642 102 . IFF 744 | . . . . . . . . 642 102 . Structural 70 | . . . . . . 70 . . . . Robot Analysis Total 3 | . . . 3 . . . . . . . Derelict Logs Recovered 1 | . . 1 . . . . . . . . Drone Launches 27 | . . 20 6 . . . . . . 1 Drone Recoveries 27 | . . 20 6 . . . . . . 1 Exploration | -11 -10 -10 -9 -9 -9 -9 -9 -6 -6 -6 ------------- Run | Yrd Mat Min Mat Sto Gar Rec Scr Fac Gar Fac Turns Passed 10680 | 72 1274 213 1519 332 731 1486 2206 1023 1284 540 Spaces Moved 5419 | 39 672 114 728 178 393 818 1363 497 380 237 Core 9 | 2 . . . . . . . . 6 1 Treads 4273 | 37 593 . 435 178 393 818 1363 406 50 . Legs 971 | . 79 114 293 . . . . . 249 236 Wheels 166 | . . . . . . . . 91 75 . Hover . | . . . . . . . . . . . Flight . | . . . . . . . . . . . Fastest Speed 50 | 50 120 120 160 160 160 160 160 95 95 50 Average Speed 167 | 154 155 173 168 160 160 160 160 168 224 189 Slowest Speed 600 | 160 190 190 190 160 160 160 160 280 600 190 Overloaded Moves . | . . . . . . . . . . . Propulsion Burnouts . | . . . . . . . . . . . Robots Hopped . | . . . . . . . . . . . Potential Cave-ins . | . . . . . . . . . . . Cave-ins Triggered . | . . . . . . . . . . . Exploration Rate (%) 48 | 3 95 46 71 26 79 98 59 11 34 8 Regions Visited 10 Branch Regions 4 Pre-discovered Areas 12 | . 2 . 5 . . 5 . . . . Known Exits Taken 4 | . . 1 1 1 . . . 1 . . Unknown Exits Taken 4 | 1 1 . . . . 1 1 . . . Scrap Searched 3 | . . . . . . . 3 . . . Spaces Dug 19 | . . . . . 16 . . 1 . 2 Terrain Destroyed 294 | . 10 . 83 29 28 1 . 62 78 3 Melee . | . . . . . . . . . . . Projectile 4 | . . . . . . . . 1 . 3 AOE 290 | . 10 . 83 29 28 1 . 61 78 . Terrain Rammed . | . . . . . . . . . . . Walls Destroyed . | . . . . . . . . . . . Machines Disabled . | . . . . . . . . . . . Actions | -11 -10 -10 -9 -9 -9 -9 -9 -6 -6 -6 --------- Run | Yrd Mat Min Mat Sto Gar Rec Scr Fac Gar Fac Total 6420 | 48 788 130 930 208 455 977 1389 590 623 282 Wait 256 | . 11 13 102 3 13 37 14 10 52 1 Move 5411 | 38 671 113 727 178 392 817 1362 497 379 237 Hop . | . . . . . . . . . . . Pick Up 48 | 4 11 1 8 4 . . 3 4 13 . Fast Attach 77 | 6 9 . 8 3 5 . 2 13 25 6 Attach 33 | . 4 1 3 . 3 2 4 4 8 4 Detach 18 | . 5 . 5 . 3 3 1 . 1 . Swap 54 | . 4 1 11 6 6 4 . 9 10 3 Drop 68 | . 9 1 14 5 6 3 3 6 13 8 Fire 298 | . 48 . 51 9 27 9 . 47 99 8 Melee 52 | . 14 . . . . . . . 23 15 Ram . | . . . . . . . . . . . Kick 2 | . 1 . 1 . . . . . . . Crush 2 | . 1 . . . . 1 . . . . Escape Stasis . | . . . . . . . . . . . Rewire 101 | . . . . . . 101 . . . . Trap . | . . . . . . . . . . . Miscellaneous . | . . . . . . . . . . . Route ------- -11/Scrapyard -10/Materials (discovered 6 exits: *Mat x3 / *Min x2 / *Sub) -10/Mines (discovered 2 exits: *Mat / Sub) -9/Materials (discovered 5 exits: *Mat x3 / Min / *Sto) -9/Storage -9/Garrison (discovered 3 exits: *Rec x3) -9/Recycling (discovered 2 exits: [*Fac] / *Scr) -9/Scraptown -6/Factory (discovered 2 exits: [*Fac] / Gar) -6/Garrison -6/Factory History --------- Turn | Location | Event 55 | -11/Scrapyard | Discovered new exit (range 12) 73 | -11/Scrapyard | Entered Materials 304 | -10/Materials | Build established: Mutant 315 | -10/Materials | Discovered new exit (range 15) 521 | -10/Materials | Discovered new exit (range 15) 651 | -10/Materials | Discovered new exit (range 16) 816 | -10/Materials | Discovered new exit (range 5) 928 | -10/Materials | Discovered new exit (range 9) 1146 | -10/Materials | Discovered new exit (range 9) 1223 | -10/Materials | Core integrity fell below 50% 1269 | -10/Materials | Lost 3 parts (1p1n1w) 1347 | -10/Materials | Entered Mines 1379 | -10/Mines | Identified exit to Subcaves 1450 | -10/Mines | Found the Drone Emporium 1466 | -10/Mines | Found Prototype Device 1499 | -10/Mines | Identified Sensor Drone Bay 1535 | -10/Mines | Discovered new exit (range 9) 1549 | -10/Mines | Identified exit to Materials 1560 | -10/Mines | Entered Materials 1560 | -9/Materials | Evolved 2 slots: Propulsion x1, Weapon x1 1937 | -9/Materials | Discovered new exit (range 9) 2088 | -9/Materials | Discovered new exit (range 10) 2156 | -9/Materials | Identified exit to Mines 2156 | -9/Materials | Identified exit to Storage 2350 | -9/Materials | Central database locked down 2459 | -9/Materials | Discovered new exit (range 5) 2495 | -9/Materials | Identified exit to Materials 2524 | -9/Materials | Destroyed 9 combat bots 2553 | -9/Materials | Learned location of Storage (-9) 2598 | -9/Materials | Build established: Scientist-Tank 2600 | -9/Materials | Learned 2 Storage zone layouts 2638 | -9/Materials | Learned location of Zion (-6) 2705 | -9/Materials | Loaded intel: 10 trap records 2755 | -9/Materials | Learned location of Mines (-8) 3079 | -9/Materials | Entered Storage 3283 | -9/Storage | Garrison activated, responded to threat 3411 | -9/Storage | Identified exit to Garrison 3411 | -9/Storage | Entered Garrison 3457 | -9/Garrison | Triggered checkpoint 3566 | -9/Garrison | Rescued a captive Derelict 3598 | -9/Garrison | Triggered checkpoint 3605 | -9/Garrison | Triggered checkpoint 3653 | -9/Garrison | Destroyed 12 combat bots 3673 | -9/Garrison | Discovered new exit (range 8) 3817 | -9/Garrison | Triggered checkpoint 3842 | -9/Garrison | Destroyed 8 combat bots 3926 | -9/Garrison | Discovered new exit (range 13) 3960 | -9/Garrison | Installed Relay Interface Framework 4096 | -9/Garrison | Expanded RIF knowledge: Zone Cloak 4131 | -9/Garrison | Discovered new exit (range 8) 4142 | -9/Garrison | Entered Recycling 4551 | -9/Recycling | Discovered new exit (range 5) 4708 | -9/Recycling | Build established: Commander-Tank 4897 | -9/Recycling | Lost 5 allies 5151 | -9/Recycling | Build established: Scientist-Tank 5300 | -9/Recycling | Scanned before Scraplab entrance 5586 | -9/Recycling | Entered Scraplab 5599 | -9/Recycling | Discovered new exit (range 3) 5628 | -9/Recycling | Entered Scraptown 5628 | -9/Scraptown | Accompanied by 4 allies 5837 | -9/Scraptown | Build established: Scavenger-Mutant 6043 | -9/Scraptown | Discovered new exit (range 11) 6089 | -9/Scraptown | Visited Spacefarers 6116 | -9/Scraptown | Visited Awakened 6428 | -9/Scraptown | System corruption cleaned by C-Scrubber 6548 | -9/Scraptown | Visited Cyclists 6606 | -9/Scraptown | Heard Great Nut preacher, LISTEN AND RECITE! 6620 | -9/Scraptown | Turned away by UFD registrar 6741 | -9/Scraptown | Build established: Scavenger-Tank 6861 | -9/Scraptown | Visited Assassins FH 7064 | -9/Scraptown | Visited The Evicted 7103 | -9/Scraptown | Visited Symbiants 7136 | -9/Scraptown | Visited Junk Repository 7834 | -9/Scraptown | Entered Factory 7834 | -6/Factory | Accompanied by 4 allies 7834 | -6/Factory | Evolved 6 slots: Propulsion x1, Utility x5 8027 | -6/Factory | Garrison activated, responded to threat 8236 | -6/Factory | Discovered new exit (range 15) 8857 | -6/Factory | Identified exit to Garrison 8857 | -6/Factory | Entered Garrison 8867 | -6/Garrison | Triggered checkpoint 8947 | -6/Garrison | Garrison Relay disabled 8957 | -6/Garrison | Heavy support dispatched to Factory 9059 | -6/Garrison | Lost 6 parts (3n3u) 9061 | -6/Garrison | Triggered checkpoint 9063 | -6/Garrison | Heavy support dispatched to Factory 9427 | -6/Garrison | Spotted B-75 Beast 9458 | -6/Garrison | Core integrity fell below 50% 9490 | -6/Garrison | Destroyed 7 combat bots 9525 | -6/Garrison | Core integrity fell below 20% 9530 | -6/Garrison | Destroyed B-75 Beast 9553 | -6/Garrison | Lost 9 parts (2n4u3w) 9667 | -6/Garrison | Triggered checkpoint 9701 | -6/Garrison | Triggered checkpoint 9785 | -6/Garrison | Lost 4 parts (1n1u2w) 9900 | -6/Garrison | Discovered new exit (range 12) 9915 | -6/Garrison | Expanded RIF knowledge: Command Fork 9949 | -6/Garrison | Triggered checkpoint 9994 | -6/Garrison | Garrison Relay disabled 10071 | -6/Garrison | Rescued a captive Derelict 10072 | -6/Garrison | Rescued a captive Derelict 10141 | -6/Garrison | Entered Factory 10141 | -6/Factory | Accompanied by 1 ally 10681 | -6/Factory | Released all parts (13) 10681 | -6/Factory | Destroyed by G-50 Soldier with Heavy Laser Last Messages --------------- 10667_ C-30 ARC bursts open, deploying its payload. 10667_ L-41 Fighter unfolds itself. 10667_ G-50 Soldier unfolds itself. 10670_ Critical hit (Burn: +37). 10673_ System corrupted: Imp. Utility Shielding rejected. 10674_ Sensor Drone retrieved by Sensor Drone Bay (no repairs). 10674_ K-01 Serf collects debris. 10681_ Carbon-fiber Leg destroyed. 10681_ Released Adv. Assault Cannon. 10681_ Released Flexi-carbon Leg. 10681_ Released Lrg. Storage Unit. 10681_ Released Rnf. Quantum Reactor. 10681_ Released Imp. Cooling System. 10681_ Released Imp. Core Shielding. 10681_ Released Adv. Heat Sink. 10681_ Released Sensor Drone Bay. 10681_ Released Carbon-fiber Leg. 10681_ Released Flexi-carbon Leg. 10681_ Released Relay Coupler [NC]. 10681_ K-01 Serf collects debris. Map ----- +----------------------------------------------------+ | ?????????????????????????????????????????????????? | | ?????????????????????????????????????????????????? | | ?????????????????????????????????????????????????? | | ?????????????????????????????????????????????????? | | ?????????????????????????????????????????????????? | | ?????????????????????????????????????????????????? | | ?????????????????????????????????????????????????? | | ?????????????????????????????????????????????????? | | ?????????????????????????????????????????????????? | | ?????????????????????????????????????????????????? | | ?????????????????##????##????????????????????????? | | ?????????????? ??? ???? ???????????????????? | | ???????????? ??? ??? ???????????????????? | | ????????????% """" """" ""??? ??????????????? | | ????????????" """" """"k"""" ????????????? | | ????????????" """" """" """" ????????????? | | ???????????? R u #????????????? | | ????????????? t g #????????????? | | ??????????????? g #????????????? | | ???????????????? g g #????????????? | | ?????????????????# #????????????? | | ?????????????????# #????????????? | | ?????????????????# #????????????? | | ????####????????## #????????????? | | ???# ????????+ =!|*! #????????????? | | ???# "????????## !l@!! #????????????? | | ???# "?????????# ###]]#######???????????????? | | ???# ""???""???# #|!=|#?????????????????????? | | ???# ???# # !!!#?????????????????????? | | ???# """ """ ??# # = #?????????????????????? | | ???# """ """ ## #g #?????????????????????? | | ???# """ """ ?# + #?????????????????????? | | ???# ???# # #?????????????????????? | | ???# ?????# #g #?????????????????????? | | ???# ???????# + #?????????????????????? | | #### ?????????# # #??? #?????????????? | | ! ##+############ ###### #?????????????? | | ^ #?????????????? | | % T /?????????????? | | ] ^ #?????????????? | | ##/###################### #?????????????? | | #### ????????????????????? #?????????????? | | ???# """"?????????????????????+####?????????????? | | #### ?????????????????????????????????????? | | ## """"""""???????????????????????????????????? | | ## ???????????????????????????????????? | | ## """"""""???????????????????????????????????? | | ## ??????????????????????????????????????? | | ## ""?????????????????????????????????????????? | | ## ?????????????????????????????????????????? | +----------------------------------------------------+ Best States ------------- Heat Dissipation 102 Energy Generation 25 Energy Capacity 350 Matter Stores 300 Matter Capacity 300 Sight Range 16 Terrain Scan Density 10 Armor Coverage 600 Resistance: EM 25 Core Shielding 30 Power Shielding 33 Utility Shielding 66 Weapon Cycling 25 Phase Shifting 5 Evasion (%) 55 Melee Accuracy 6 Target Analysis 5 Recoil Reduction 4 Relay Coupler Types 1 Relay Coupler Value 29 Item Schematics ----------------- Hcp. Storage Unit | -10/Materials | Hacked Plasma Cutter | -9/Recycling | Hacked Robot Schematics ------------------ None Fabricated ------------ Nothing Repaired ---------- Nothing Studied --------- Aluminum Leg | -9/Materials | Hacked Mni. Grenade Launcher | -9/Materials | Hacked Hvy. Assault Rifle | -9/Materials | Hacked Lgt. EM Pulse Cannon | -9/Materials | Hacked Lgt. Treads | -9/Materials | Hacked Autogun | -9/Materials | Hacked Imp. Ion Engine | -9/Materials | Hacked Alien Tech Used ----------------- None Achievements -------------- None Challenges ------------ None Game ------ Seed HelicalReinforcedProtomatter Manual? 0 Play Time 01:13:23 Cumulative 513.1 hours Start 2026.01.24 @ 18:41:17 End 2026.01.24 @ 20:40:55 Sessions 1 Manual Loads 0 Difficulty Rogue Special Mode None Game No. 206 Rogue 133 Adventurer 68 Explorer 5 Win Type - Total 40 Types 21/3/4/5/3/0/1/1/0/2 Lore% 84 Gallery% 80 Achievement% 65 Wizard Run 0 Options --------- Layout 0 ASCII 0 Keyboard 0 Movement Numpad Keybinds 0 Fullscreen 1 Font 24/Smallcaps Map View 76x50 Zoom Use 0% Tactical HUD 1 Map Filters NONE Filters NONE Steam 1 RUN: 63d2702e-c047-42d5-92a5-6f739fd9b391